bitfinex-derivatives/quotes_SOLF0:USTF0_20250524
["timestamp","ask_amount","ask_price","bid_price","bid_amount"]
[1748129137029,0.04048994,176.06,176.01,5.6796]
[1748129137531,0.04048994,176.06,175.99,127.66]
[1748129137941,4.05628994,176.06,175.99,127.66]
[1748129138130,5.6794,176.02,175.99,127.66]
[1748129138326,0.03714163,176.02,175.99,127.66]
[1748129139137,5.71674163,176.02,175.99,127.66]
[1748129139330,5.71674163,176.02,175.95,129.583]
[1748129139726,0.03714163,176.02,175.98,5.6805]
[1748129140936,0.03714163,176.02,175.97,5.6808]
[1748129141334,5.71654163,176.02,175.97,5.6808]
[1748129142533,0.03714163,176.02,175.98,5.6806]
[1748129142733,0.03714163,176.02,175.95,127.68]
[1748129143039,5.71674163,176.02,175.97,5.6808]
[1748129143237,0.03714163,176.02,175.97,5.6808]
[1748129143633,5.6797,176.01,175.97,5.6808]
[1748129143839,0.03714163,176.02,175.97,5.6808]
[1748129144040,0.03714163,176.02,175.95,127.68]
[1748129144041,0.03714163,176.02,175.98,5.6806]
[1748129144248,0.03714163,176.02,175.95,127.68]
[1748129144445,0.03714163,176.02,175.99,5.6801]
[1748129149151,5.71664163,176.02,175.95,127.68]
[1748129149351,0.03714163,176.02,175.95,127.68]
[1748129149848,5.71664163,176.02,175.98,5.6806]
[1748129150654,0.03714163,176.02,175.98,5.6806]
[1748129151350,5.71664163,176.02,175.98,5.6806]
[1748129151560,5.71664163,176.02,175.97,5.6809]
[1748129151857,0.03714163,176.02,175.95,127.68]
[1748129152060,0.03714163,176.02,175.97,5.681]
[1748129152451,0.03714163,176.02,175.95,127.68]
[1748129152652,5.22956591,176.0,175.9,126.62]
[1748129152852,0.03797313,175.97,175.9,126.62]
[1748129153053,0.03797313,175.97,175.96,5.6813]
[1748129153960,0.03797313,175.97,175.95,126.62]
[1748129155159,0.03797313,175.97,175.91,126.62]
[1748129155660,0.03797313,175.97,175.93,5.682]
[1748129156255,0.03797313,175.97,175.94,5.6819]
[1748129156655,0.03797313,175.97,175.91,126.62]
[1748129158456,0.03797313,175.97,175.93,5.6823]
[1748129158967,5.71897313,175.97,175.91,126.62]
[1748129159157,5.71897313,175.97,175.92,5.6824]
[1748129159359,5.71897313,175.97,175.91,126.62]
[1748129160364,0.03797313,175.97,175.93,5.6823]
[1748129160562,0.03797313,175.97,175.91,126.62]
[1748129161066,0.03797313,175.97,175.96,5.6813]
[1748129161663,7.03258537,176.04,175.92,5.56536591]
[1748129161863,7.03258537,176.04,175.92,5.73316591]
[1748129162063,7.03258537,176.04,175.93,1.857]
[1748129162368,7.03258537,176.04,176.0,5.68]
[1748129162571,7.07023968,176.04,176.0,5.71632918]
[1748129162868,0.03765431,176.04,176.0,0.03632918]
[1748129163172,0.03765431,176.04,176.01,5.6797]
[1748129163561,0.03765431,176.04,176.0,0.03632918]
[1748129163873,7.03258537,176.08,176.0,0.03632918]
[1748129164970,0.04133736,176.06,176.0,0.03632918]
[1748129166676,0.04133736,176.06,176.05,5.6782]
[1748129170578,8.89618537,176.14,176.09,5.6768]
[1748129170779,8.89618537,176.14,176.04,126.64]
[1748129170980,8.89618537,176.14,176.05,107.92]
[1748129171274,8.89618537,176.14,176.06,5.6778]
[1748129171477,8.89618537,176.14,176.05,107.92]
[1748129171778,0.04061565,176.12,176.08,0.03852222]
[1748129171973,131.82956591,176.11,175.92,497.07541908]
[1748129172174,5.22956591,176.04,175.92,623.67541908]
[1748129172370,5.22956591,176.01,175.92,623.67541908]
[1748129172677,5.22956591,176.01,175.92,126.6]
[1748129172976,0.03679609,175.98,175.95,0.0417703]
[1748129174880,0.03679609,175.98,175.96,5.6811]
[1748129175079,0.03679609,175.98,175.95,0.0417703]
[1748129177075,5.266362,175.98,175.95,0.0417703]
[1748129177276,5.6813,175.96,175.95,0.0417703]
[1748129177480,125.08,175.97,175.89,125.08]
[1748129177979,125.08,175.97,175.87,5.6842]
[1748129178369,5.72239089,175.94,175.9,0.04052614]
[1748129178575,0.04029089,175.94,175.9,0.04052614]
[1748129180186,0.04029089,175.94,175.9,125.14052614]
[1748129180482,0.04029089,175.94,175.93,5.6823]
[1748129181079,7.03258537,175.98,175.97,5.681]
[1748129181582,10.42545369,176.0,175.97,5.681]
[1748129181790,125.1,176.04,175.98,5.6804]
[1748129182287,0.03585601,176.02,175.99,0.03614164]
[1748129184683,0.03585601,176.02,176.01,5.6797]
[1748129186587,0.03585601,176.02,175.99,0.03614164]
[1748129188891,0.03585601,176.02,175.99,5.71624164]
[1748129189388,0.03585601,176.02,175.99,0.03614164]
[1748129189687,0.03585601,176.02,175.99,5.71644164]
[1748129189990,0.03585601,176.02,175.99,0.03614164]
[1748129190178,0.03585601,176.02,176.0,5.6798]
[1748129190691,0.03585601,176.02,175.99,0.03614164]
[1748129191088,0.03585601,176.02,176.01,5.6797]
[1748129193085,0.03585601,176.02,176.01,130.7597]
[1748129194295,5.601e-05,176.02,176.01,130.7597]
[1748129196194,5.601e-05,176.02,176.01,238.6997]
[1748129197994,1.8833,176.11,176.1,5.6768]
[1748129198298,7.03258537,176.14,176.1,5.6768]
[1748129198698,7.03258537,176.14,176.06,125.06]
[1748129198900,130.9083,176.16,176.06,125.06]
[1748129199103,0.03963773,176.13,176.12,5.6762]
[1748129200698,0.03963773,176.13,176.11,125.06]
[1748129201692,133.55399848,176.12,175.83,557.58555737]
[1748129201995,8.52529407,176.05,175.87,2.269]
[1748129202199,1.8749,176.11,175.97,5.681]
[1748129202397,5.6787,176.05,175.92,133.51211181]
[1748129202599,0.03854768,176.03,176.0,0.03983801]
[1748129202794,0.03854768,176.03,175.92,133.51211181]
[1748129202988,0.03854768,176.03,175.92,125.04]
[1748129203197,125.04,176.06,175.92,125.04]
[1748129203698,5.71559747,176.01,175.97,0.03888164]
[1748129204092,0.03589747,176.01,175.97,0.03888164]
[1748129206405,124.31589747,176.01,175.97,0.03888164]
[1748129206602,5.6803,176.0,175.97,0.03888164]
[1748129207004,0.03589747,176.01,175.97,0.03888164]
[1748129209202,5.6801,176.0,175.97,0.03888164]
[1748129209706,5.71569747,176.01,175.97,0.03888164]
[1748129209906,0.03589747,176.01,175.97,0.03888164]
[1748129214510,0.03589747,176.01,175.98,5.6805]
[1748129215612,0.03589747,176.01,175.97,0.03888164]
[1748129217212,0.03589747,176.01,175.97,5.71958164]
[1748129217417,0.03589747,176.01,175.97,0.03888164]
[1748129218114,0.03589747,176.01,175.86,124.3]
[1748129218321,8.52529407,176.0,175.9,5.6832]
[1748129218621,8.52529407,176.0,175.86,124.3]
[1748129218915,8.52529407,176.0,175.93,5.6821]
[1748129218916,14.20549407,176.0,175.93,5.6821]
[1748129219110,0.04079262,175.98,175.93,5.6821]
[1748129219315,0.04079262,175.98,175.92,124.3]
[1748129219513,0.04079262,175.98,175.94,5.6817]
[1748129220215,0.04079262,175.98,175.93,5.6823]
[1748129220519,0.04079262,175.98,175.92,124.3]
[1748129221020,0.04079262,175.98,175.94,5.6817]
[1748129221220,0.04079262,175.98,175.92,124.3]
[1748129221921,0.04079262,175.98,175.94,5.6819]
[1748129222420,0.04079262,175.98,175.92,124.3]
[1748129223121,0.04079262,175.98,175.94,5.6818]
[1748129224822,5.72159262,175.98,175.94,5.6818]
[1748129225025,5.72159262,175.98,175.93,5.6823]
[1748129226023,0.04079262,175.98,175.92,124.3]
[1748129227221,0.04079262,175.98,175.94,5.6817]
[1748129229126,0.04079262,175.98,175.92,124.3]
[1748129230332,0.04079262,175.98,175.94,5.6818]
[1748129231734,0.04079262,175.98,175.95,5.6816]
[1748129232125,0.04079262,175.98,175.92,124.3]
[1748129232329,0.04079262,175.98,175.96,5.6812]
[1748129234226,0.04079262,175.98,175.97,5.681]
[1748129234435,0.04079262,175.98,175.97,130.001]
[1748129234726,0.04079262,175.98,175.93,124.32]
[1748129234928,0.04079262,175.98,175.93,130.0021]
[1748129235229,0.04079262,175.98,175.93,124.32]
[1748129236226,5.72179262,175.98,175.93,124.32]
[1748129236833,0.04079262,175.98,175.94,5.682]
[1748129237133,0.04079262,175.98,175.93,124.32]
[1748129237328,5.6811,175.97,175.93,5.6821]
[1748129237630,0.04079262,175.98,175.91,123.12]
[1748129237831,0.04323676,175.96,175.91,123.12]
[1748129238232,0.04323676,175.96,175.94,5.6817]
[1748129239730,0.04323676,175.96,175.93,5.6822]
[1748129240236,0.04323676,175.96,175.86,492.9535]
[1748129240437,0.04323676,175.96,175.87,123.14]
[1748129241333,0.04323676,175.96,175.93,5.6821]
[1748129242134,5.72463676,175.96,175.92,5.6825]
[1748129242437,0.04323676,175.96,175.87,123.14]
[1748129243336,5.72463676,175.96,175.91,5.6828]
[1748129243832,5.6819,175.95,175.9,123.14]
[1748129245037,5.6819,175.95,175.91,5.683]
[1748129245333,0.04323676,175.96,175.9,123.14]
[1748129245539,5.2763124,175.96,175.86,614.08]
[1748129245732,5.2763124,175.96,175.78,7.22317564]
[1748129245733,5.23307564,175.93,175.78,7.22317564]
[1748129245938,0.03894298,175.87,175.79,123.14]
[1748129246334,0.03894298,175.87,175.86,5.6846]
[1748129248241,0.03894298,175.87,175.85,123.14]
[1748129249440,0.03894298,175.87,175.85,128.8247]
[1748129250541,0.03894298,175.87,175.86,5.6846]
[1748129254135,4.298e-05,175.87,175.86,5.6846]
[1748129254345,4.298e-05,175.87,175.86,9.636]
[1748129255841,4.298e-05,175.87,175.86,5.6846]
[1748129256236,4.298e-05,175.87,175.85,0.03890001]
[1748129256637,5.6846,175.86,175.85,0.03890001]
[1748129259345,4.298e-05,175.87,175.77,614.18]
[1748129259543,8.91378537,175.89,175.77,614.18]
[1748129259946,5.685,175.85,175.77,614.18]
[1748129260239,0.04031763,175.83,175.77,614.18]
[1748129260439,5.72621763,175.83,175.77,614.18]
[1748129260946,5.72621763,175.83,175.79,5.6866]
[1748129261251,5.72621763,175.83,175.77,614.18]
[1748129261454,0.04031763,175.83,175.81,5.6861]
[1748129261842,0.04031763,175.83,175.77,614.18]
[1748129262043,0.04031763,175.83,175.8,5.6864]
[1748129262242,0.04031763,175.83,175.77,614.18]
[1748129262550,0.04031763,175.83,175.82,5.6859]
[1748129263252,0.04031763,175.83,175.81,5.6861]
[1748129263555,0.04031763,175.83,175.77,614.18]
[1748129264250,0.04031763,175.83,175.81,5.6862]
[1748129265551,0.04031763,175.83,175.82,5.6859]
[1748129265750,0.04031763,175.83,175.77,614.18]
[1748129266356,0.04031763,175.83,175.81,5.6861]
[1748129266940,0.04031763,175.83,175.77,614.18]
[1748129267652,5.6861,175.82,175.79,5.6869]
[1748129267851,0.04031763,175.83,175.79,5.6869]
[1748129268252,5.72611763,175.83,175.79,5.6869]
[1748129268655,5.72611763,175.83,175.8,5.6866]
[1748129269454,0.04031763,175.83,175.81,5.686]
[1748129269649,0.04031763,175.83,175.77,123.18]
[1748129269952,0.04031763,175.83,175.81,5.6862]
[1748129270152,0.04031763,175.83,175.77,123.18]
[1748129271147,0.04031763,175.83,175.79,5.6867]
[1748129271758,5.6863,175.81,175.77,128.8673]
[1748129272047,5.6863,175.81,175.77,123.18]
[1748129272356,5.6863,175.81,175.78,5.687]
[1748129272755,5.6861,175.82,175.78,5.687]
[1748129273059,5.6861,175.82,175.79,5.6869]
[1748129273252,5.72601763,175.83,175.79,5.6869]
[1748129273455,0.04031763,175.83,175.79,5.6869]
[1748129273760,5.686,175.82,175.79,5.6869]
[1748129273950,0.04031763,175.83,175.79,5.6869]
[1748129274260,0.04031763,175.83,175.8,5.6865]
[1748129274754,5.72601763,175.83,175.8,5.6865]
[1748129276066,5.686,175.82,175.79,5.6868]
[1748129276661,0.04031763,175.83,175.76,122.32]
[1748129277261,0.04031763,175.83,175.82,5.6859]
[1748129277761,0.04031763,175.83,175.81,5.6861]
[1748129279059,0.04031763,175.83,175.82,5.6859]
[1748129281054,0.04031763,175.83,175.8,122.32]
[1748129281665,0.04031763,175.83,175.8,128.0063]
[1748129281954,0.04031763,175.83,175.8,122.32]
[1748129282761,0.04031763,175.83,175.82,5.6859]
[1748129283259,0.04031763,175.83,175.8,122.32]
[1748129284059,0.04031763,175.83,175.81,5.6861]
[1748129284466,0.04031763,175.83,175.8,122.32]
[1748129285065,0.04031763,175.83,175.82,5.6859]
[1748129286158,1.763e-05,175.83,175.82,5.6859]
[1748129286450,7.03258537,175.91,175.82,5.68]
[1748129286654,7.03258537,175.91,175.83,5.23731049]
[1748129286862,7.03258537,175.91,175.84,124.357]
[1748129287166,7.03258537,175.91,175.9,5.6833]
[1748129287464,7.07009901,175.91,175.9,127.9833]
[1748129288157,4.00379901,175.91,175.9,127.9833]
[1748129288462,3.96628537,175.99,175.94,5.682]
[1748129288759,3.96628537,175.99,175.87,108.04]
[1748129288952,3.96628537,175.99,175.89,5.23731049]
[1748129289157,3.96628537,175.99,175.98,5.6808]
[1748129290170,3.96628537,175.99,175.97,128.02138795]
[1748129290470,0.0431726,176.0,175.97,122.34038795]
[1748129291861,5.7233726,176.0,175.97,122.34038795]
[1748129292167,0.0431726,176.0,175.97,122.34038795]
[1748129293570,0.0431726,176.0,175.99,5.6804]
[1748129294171,0.0431726,176.0,175.98,5.6807]
[1748129294471,0.0431726,176.0,175.97,122.34038795]
[1748129294863,0.0431726,176.0,175.97,0.04038795]
[1748129296164,0.0431726,176.0,175.99,5.6804]
[1748129298172,0.0431726,176.0,175.99,122.0]
[1748129298872,0.0431726,176.0,175.97,0.04038795]
[1748129299074,0.0431726,176.0,175.97,122.02038795]
[1748129300161,0.0431726,176.0,175.97,0.04038795]
[1748129300674,0.0431726,176.0,175.97,5.72118795]
[1748129300971,0.0431726,176.0,175.97,0.04038795]
[1748129301670,0.0431726,176.0,175.97,5.72138795]
[1748129301978,0.0431726,176.0,175.97,0.04038795]
[1748129302476,0.0431726,176.0,175.97,5.72118795]
[1748129302669,0.0431726,176.0,175.97,0.04038795]
[1748129303068,0.0431726,176.0,175.99,5.6804]
[1748129307180,125.8526,176.1,176.04,5.6787]
[1748129307374,1.8723,176.1,176.03,121.96]
[1748129307575,1.9294,176.14,176.09,5.6772]
[1748129307978,3.7471,176.17,176.09,5.6772]
[1748129308177,5.71799053,176.15,176.11,0.03990296]
[1748129308577,0.04259053,176.15,176.11,0.03990296]
[1748129309384,0.04259053,176.15,176.12,127.616]
[1748129309779,0.04259053,176.15,176.12,121.94]
[1748129310281,0.04259053,176.15,176.11,0.03990296]
[1748129311180,5.6757,176.14,176.11,0.03990296]
[1748129311383,0.04259053,176.15,176.11,0.03990296]
[1748129311582,0.04259053,176.15,176.14,5.6756]
[1748129311783,0.04259053,176.15,176.12,121.92]
[1748129312690,0.04259053,176.15,176.13,5.6759]
[1748129312989,0.04259053,176.15,176.12,121.92]
[1748129313490,0.04259053,176.15,176.14,5.6756]
[1748129315791,0.04259053,176.15,176.13,5.6759]
[1748129315994,0.04259053,176.15,176.12,121.92]
[1748129316391,0.04259053,176.15,176.13,5.6759]
[1748129316796,0.04259053,176.15,176.12,121.92]
[1748129317087,0.04259053,176.15,176.13,5.6759]
[1748129317280,0.04259053,176.15,176.11,0.03990296]
[1748129318393,0.04259053,176.15,176.11,5.71630296]
[1748129318594,0.04259053,176.15,176.12,121.88]
[1748129319592,5.71809053,176.15,176.12,121.88]
[1748129321998,5.6761,176.13,176.11,0.03990296]
[1748129322202,0.04259053,176.15,176.11,0.03990296]
[1748129323096,0.04259053,176.15,175.98,9.24883493]
[1748129323399,1.9634,176.17,176.03,121.86]
[1748129323600,5.6772,176.09,176.06,5.6781]
[1748129323993,1.9853,176.14,176.03,121.86]
[1748129324198,5.6779,176.07,176.04,5.6787]
[1748129324396,5.6779,176.07,176.04,5.72050238]
[1748129325098,5.6779,176.07,176.04,0.04180238]
[1748129325403,0.04304033,176.1,176.04,0.04180238]
[1748129326104,5.6773,176.09,176.04,0.04180238]
[1748129326506,5.6773,176.09,176.05,5.6784]
[1748129326907,0.04304033,176.1,176.04,0.04180238]
[1748129327206,0.04304033,176.1,176.09,5.6772]
[1748129327398,0.04304033,176.1,176.09,127.5572]
[1748129328207,0.04304033,176.1,176.08,122.08164263]
[1748129328808,0.04304033,176.1,176.09,5.6772]
[1748129329206,4.033e-05,176.1,176.09,5.6772]
[1748129329707,4.033e-05,176.1,176.09,127.7172]
[1748129336010,4.033e-05,176.1,176.09,127.6972]
[1748129350024,4.033e-05,176.1,176.08,0.04164263]
[1748129350216,4.033e-05,176.1,176.05,122.02]
[1748129350923,5.6781,176.07,176.05,122.02]
[1748129351123,5.6781,176.07,176.04,0.0395999]
[1748129351326,5.71525907,176.07,176.04,0.0395999]
[1748129351724,0.03715907,176.07,176.04,5.7181999]
[1748129352627,0.03715907,176.07,176.05,5.6784]
[1748129352922,0.03715907,176.07,176.04,0.0395999]
[1748129353323,0.03715907,176.07,176.05,5.6784]
[1748129353524,0.03715907,176.07,176.04,0.0395999]
[1748129353728,0.03715907,176.07,176.06,5.6782]
[1748129357633,0.03715907,176.07,176.05,127.6984]
[1748129357831,0.03715907,176.07,176.05,122.02]
[1748129358429,0.03715907,176.07,176.06,5.6782]
[1748129359735,7.05849134,176.13,176.12,5.6762]
[1748129361836,0.03642419,176.14,176.12,5.6762]
[1748129362132,0.03642419,176.14,176.13,5.6759]
[1748129363131,2.419e-05,176.14,176.13,5.6759]
[1748129363337,7.05849134,176.2,176.12,113.10147339]
[1748129363737,7.05849134,176.2,176.18,5.22147339]
[1748129363941,7.05849134,176.2,176.19,121.94]
[1748129364236,9.134e-05,176.2,176.19,127.614]
[1748129364429,0.04074855,176.21,176.19,121.94]
[1748129364740,0.04074855,176.21,176.2,5.6737]
[1748129364942,0.04074855,176.21,176.19,121.94]
[1748129365336,0.04074855,176.21,176.2,5.6736]
[1748129365848,0.04074855,176.21,176.2,127.5936]
[1748129366043,0.04074855,176.21,176.2,121.92]
[1748129367940,0.04074855,176.21,176.18,0.04140499]
[1748129369240,5.71414855,176.21,176.18,0.04140499]
[1748129370339,0.04074855,176.21,176.18,0.04140499]
[1748129372646,0.04074855,176.21,176.2,5.6736]
[1748129375048,0.04074855,176.21,176.19,5.6739]
[1748129375545,0.04074855,176.21,176.18,0.04140499]
[1748129375749,0.04074855,176.21,176.18,5.71570499]
[1748129376153,0.04074855,176.21,176.18,0.04140499]
[1748129376750,0.04074855,176.21,176.2,5.6736]
[1748129382051,4.855e-05,176.21,176.2,5.6736]
[1748129382348,4.855e-05,176.21,176.18,0.04140499]
[1748129382349,1.9055,176.29,176.18,0.04140499]
[1748129382543,1.9055,176.29,176.18,121.86]
[1748129383249,0.0366715,176.25,176.22,0.04295754]
[1748129383446,0.0366715,176.25,176.18,127.534]
[1748129383653,0.0366715,176.25,176.18,121.86]
[1748129384149,5.6732,176.22,176.18,121.86]
[1748129384651,0.0366715,176.25,176.18,127.57064924]
[1748129385148,0.0366715,176.25,176.18,121.89664924]
[1748129385448,5.6726,176.24,176.2,5.6734]
[1748129385950,0.0366715,176.25,176.19,5.6739]
[1748129386652,5.6728,176.23,176.19,5.6739]
[1748129386851,0.0366715,176.25,176.19,5.6739]
[1748129388054,5.6732,176.22,176.19,5.6739]
[1748129389657,5.6728,176.23,176.19,5.6739]
[1748129391158,5.6731,176.22,176.19,5.6739]
[1748129391459,0.0366715,176.25,176.18,121.89664924]
[1748129391852,5.6727,176.23,176.19,5.6739]
[1748129392259,0.0366715,176.25,176.18,121.89664924]
[1748129392461,5.6733,176.22,176.18,127.57084924]
[1748129392857,5.6734,176.21,176.18,127.57084924]
[1748129393061,5.71487818,176.21,176.18,127.57084924]
[1748129393557,0.04147818,176.21,176.19,5.6739]
[1748129394259,5.71487818,176.21,176.18,127.57094924]
[1748129395566,0.04147818,176.21,176.18,121.89664924]
[1748129395874,0.04147818,176.21,176.18,0.03664924]
[1748129396170,5.674,176.19,176.15,5.6751]
[1748129396370,3.8893,176.2,176.15,5.6751]
[1748129396572,5.6745,176.18,176.15,5.6752]
[1748129396866,3.8893,176.2,176.14,121.38]
[1748129397274,5.674,176.19,176.16,5.6747]
[1748129397466,3.8893,176.2,176.15,0.03941701]
[1748129397776,9.5632,176.2,176.17,5.6745]
[1748129397965,3.8893,176.2,176.15,0.03941701]
[1748129399665,9.5631,176.2,176.17,5.6744]
[1748129400275,3.8893,176.2,176.15,121.43941701]
[1748129401370,3.8893,176.2,176.17,5.6744]
[1748129401570,3.8893,176.2,176.15,121.43941701]
[1748129402270,5.6746,176.18,176.15,121.43941701]
[1748129402672,5.6746,176.18,176.15,127.11441701]
[1748129403172,3.8893,176.2,176.15,0.03941701]
[1748129403370,3.8893,176.2,176.13,127.0757]
[1748129403575,3.8893,176.2,176.13,121.4]
[1748129403768,5.6746,176.17,176.13,121.4]
[1748129403968,5.6746,176.17,176.14,5.6753]
[1748129404171,3.8893,176.2,176.13,121.4]
[1748129404375,5.6746,176.17,176.15,0.03859109]
[1748129405683,5.6749,176.16,176.15,0.03859109]
[1748129406175,5.6747,176.17,176.15,0.03859109]
[1748129407182,0.03740516,176.18,176.15,0.03859109]
[1748129407183,5.6749,176.16,176.15,0.03859109]
[1748129409078,0.03740516,176.18,176.15,0.03859109]
[1748129409675,5.6749,176.16,176.15,0.03859109]
[1748129411183,5.6755,176.15,176.13,121.4]
[1748129411583,5.6756,176.14,176.13,121.4]
[1748129412385,0.03740516,176.18,176.13,127.0759]
[1748129412885,5.6747,176.17,176.13,121.4]
[1748129413086,0.03740516,176.18,176.13,121.4]
[1748129414087,5.6748,176.17,176.14,5.6754]
[1748129414488,0.03740516,176.18,176.13,121.4]
[1748129415091,5.6749,176.16,176.14,5.6756]
[1748129415982,5.6749,176.16,176.13,127.0758]
[1748129416695,5.6754,176.15,176.13,121.4]
[1748129417286,5.675,176.16,176.13,127.0759]
[1748129417783,0.03740516,176.18,176.13,121.4]
[1748129418094,5.6747,176.17,176.14,5.6754]
[1748129418494,0.03740516,176.18,176.13,121.4]
[1748129419399,0.03740516,176.18,176.17,5.6746]
[1748129420893,10.42545369,176.24,176.17,121.42]
[1748129421094,10.42545369,176.24,176.17,126.63805329]
[1748129421291,10.42545369,176.24,176.2,5.21805329]
[1748129421499,0.85545369,176.24,176.23,5.6727]
[1748129421690,10.57502338,176.32,176.23,5.21805329]
[1748129421891,0.04046619,176.29,176.26,0.03625582]
[1748129422096,0.04046619,176.29,176.28,5.6711]
[1748129422498,0.04046619,176.29,176.26,121.43625582]
[1748129423095,0.04046619,176.29,176.26,0.03625582]
[1748129424092,5.6714,176.27,176.26,0.03625582]
[1748129424595,0.04046619,176.29,176.26,0.03625582]
[1748129424899,5.71146619,176.29,176.26,0.03625582]
[1748129425096,0.04046619,176.29,176.26,0.03625582]
[1748129427100,5.6714,176.27,176.26,0.03625582]
[1748129431401,5.6712,176.28,176.26,0.03625582]
[1748129431603,0.04046619,176.29,176.26,0.03625582]
[1748129432001,5.6714,176.27,176.26,0.03625582]
[1748129432903,5.6711,176.28,176.26,0.03625582]
[1748129434009,0.04046619,176.29,176.26,0.03625582]
[1748129434707,5.6714,176.27,176.26,0.03625582]
[1748129435907,0.04046619,176.29,176.26,0.03625582]
[1748129436506,5.6711,176.28,176.26,0.03625582]
[1748129436808,0.04046619,176.29,176.26,0.03625582]
[1748129437007,5.6714,176.27,176.26,0.03625582]
[1748129442014,5.6712,176.28,176.26,0.03625582]
[1748129442313,0.04046619,176.29,176.26,0.03625582]
[1748129442718,5.6711,176.28,176.26,0.03625582]
[1748129443012,0.04046619,176.29,176.26,0.03625582]
[1748129443215,5.6714,176.27,176.26,0.03625582]
[1748129445426,0.04046619,176.29,176.26,0.03625582]
[1748129446422,0.04046619,176.29,176.28,5.6711]
[1748129446614,0.04046619,176.29,176.28,127.0111]
[1748129450820,3.9391,176.41,176.28,234.8]
[1748129451016,1.9357,176.41,176.32,5.21805329]
[1748129451222,1.9357,176.41,176.33,121.32]
[1748129451928,0.03916145,176.39,176.38,5.6676]
[1748129453431,0.03916145,176.39,176.37,126.9681]
[1748129454133,0.03916145,176.39,176.38,5.6678]
[1748129454325,0.03916145,176.39,176.37,121.3]
[1748129454643,0.03916145,176.39,176.38,5.6678]
[1748129455031,0.03916145,176.39,176.37,121.3]
[1748129455626,0.03916145,176.39,176.38,5.6678]
[1748129456938,0.03916145,176.39,176.37,126.9681]
[1748129457336,0.03916145,176.39,176.37,121.3]
[1748129457633,0.03916145,176.39,176.38,5.6678]
[1748129458335,5.668,176.38,176.35,0.04338044]
[1748129458533,5.668,176.38,176.36,121.26]
[1748129458729,0.03916145,176.39,176.36,121.26]
[1748129458932,5.70676145,176.39,176.36,121.26]
[1748129459236,0.03916145,176.39,176.36,121.26]
[1748129459439,0.03916145,176.39,176.35,0.04338044]
[1748129459633,5.6685,176.36,176.35,0.04338044]
[1748129459840,5.21805329,176.37,176.3,121.26]
[1748129460136,5.21805329,176.37,176.26,490.08]
[1748129460137,5.6703,176.31,176.27,5.6713]
[1748129460538,2.0112,176.36,176.27,5.6713]
[1748129460732,0.0409718,176.33,176.3,0.04025095]
[1748129460929,0.0409718,176.33,176.24,121.26]
[1748129461131,5.6717,176.26,176.24,121.26]
[1748129461331,121.26,176.33,176.23,5.6724]
[1748129461533,121.26,176.33,176.22,121.26]
[1748129461733,121.26,176.33,176.19,5.21805329]
[1748129461933,0.03792961,176.28,176.24,0.03341517]
[1748129462242,0.03792961,176.28,176.24,121.29341517]
[1748129463137,0.03792961,176.28,176.27,5.6714]
[1748129464739,0.03792961,176.28,176.27,121.28]
[1748129465341,0.03792961,176.28,176.27,126.9514]
[1748129465538,0.03792961,176.28,176.27,121.28]
[1748129466136,2.0112,176.36,176.27,121.28]
[1748129466442,1.8749,176.38,176.27,121.28]
[1748129466743,10.5311241,176.41,176.28,489.94]
[1748129466941,5.6676,176.39,176.35,5.6686]
[1748129467137,0.03689871,176.39,176.36,121.28]
[1748129467443,0.03689871,176.39,176.36,126.9482]
[1748129468134,0.03689871,176.39,176.36,121.28]
[1748129468338,0.03689871,176.39,176.35,0.04003814]
[1748129469140,5.6683,176.37,176.35,0.04003814]
[1748129469441,0.03689871,176.39,176.35,0.04003814]
[1748129469840,5.6684,176.37,176.35,0.04003814]
[1748129470042,0.03689871,176.39,176.35,0.04003814]
[1748129470441,5.6679,176.38,176.35,0.04003814]
[1748129470746,0.03689871,176.39,176.35,0.04003814]
[1748129471444,0.03689871,176.39,176.36,5.6683]
[1748129471746,0.03689871,176.39,176.35,0.04003814]
[1748129471940,0.03689871,176.39,176.38,5.6678]
[1748129472345,0.03689871,176.39,176.35,0.04003814]
[1748129473349,0.03689871,176.39,176.36,5.6682]
[1748129473550,0.03689871,176.39,176.37,121.26]
[1748129474744,0.03689871,176.39,176.35,121.30003814]